bitfinex-derivatives/quotes_BTCF0:USTF0_20250922
["timestamp","ask_amount","ask_price","bid_price","bid_amount"]
[1758499200348,0.45479519,115310.0,115300.0,0.04606]
[1758499200638,0.45479519,115310.0,115300.0,0.12406627]
[1758499201052,0.38636,115310.0,115300.0,0.12406627]
[1758499201549,0.38636,115310.0,115300.0,0.04606]
[1758499202252,0.39757,115310.0,115300.0,0.03336]
[1758499202745,0.39757,115310.0,115300.0,0.03376]
[1758499203552,0.39757,115310.0,115300.0,0.1204383]
[1758499204353,0.39757,115310.0,115300.0,0.0904383]
[1758499204653,0.39757,115310.0,115300.0,0.1121483]
[1758499205753,0.64757,115310.0,115300.0,0.1121481]
[1758499206755,0.64657,115310.0,115300.0,0.1101481]
[1758499206953,0.64757,115310.0,115300.0,0.1111481]
[1758499208157,1.43769,115310.0,115300.0,0.1111474]
[1758499208351,1.43769,115310.0,115300.0,0.0894374]
[1758499208548,1.43569,115310.0,115300.0,0.1101874]
[1758499208748,1.44369,115310.0,115300.0,0.1131874]
[1758499209956,0.65357,115310.0,115300.0,0.1131874]
[1758499210158,1.44389,115310.0,115300.0,0.1131874]
[1758499210855,1.44385,115310.0,115300.0,0.1131874]
[1758499211858,0.65357,115310.0,115300.0,0.1131874]
[1758499212058,1.44381,115310.0,115300.0,0.1131874]
[1758499212562,0.65357,115310.0,115300.0,0.1131874]
[1758499212749,1.44373,115310.0,115300.0,0.1131874]
[1758499214957,1.44373,115310.0,115300.0,0.0914774]
[1758499215360,1.44373,115310.0,115300.0,0.0048]
[1758499216060,1.44373,115310.0,115300.0,0.0044]
[1758499216260,1.44373,115310.0,115300.0,0.0048]
[1758499216556,1.44373,115310.0,115300.0,0.0044]
[1758499216557,1.91596619,115310.0,115300.0,0.0044]
[1758499216761,2.05986619,115310.0,115300.0,0.0048]
[1758499217165,1.26970619,115310.0,115300.0,0.0044]
[1758499217462,2.06118619,115310.0,115300.0,0.0044]
[1758499217660,2.06118619,115310.0,115300.0,0.0048]
[1758499218260,2.06110619,115310.0,115300.0,0.0048]
[1758499218462,1.26970619,115310.0,115300.0,0.0048]
[1758499218664,2.06106619,115310.0,115300.0,0.0048]
[1758499219864,1.26970619,115310.0,115300.0,0.0048]
[1758499220068,2.06098619,115310.0,115300.0,0.0048]
[1758499220251,1.26970619,115310.0,115300.0,0.0048]
[1758499220455,2.06098619,115310.0,115300.0,0.0048]
[1758499221262,1.26970619,115310.0,115300.0,0.0048]
[1758499221663,2.06086619,115310.0,115300.0,0.0048]
[1758499222063,2.0811719,115310.0,115300.0,0.0048]
[1758499223264,1.6320719,115310.0,115300.0,0.0048]
[1758499223767,1.6320719,115310.0,115300.0,0.0044]
[1758499223966,0.8409119,115310.0,115300.0,0.0048]
[1758499224265,0.8409119,115310.0,115300.0,0.0044]
[1758499224459,0.8409119,115310.0,115300.0,0.0048]
[1758499224659,1.6354719,115310.0,115300.0,0.0048]
[1758499225869,1.6487919,115310.0,115300.0,0.0048]
[1758499226868,1.5048919,115310.0,115300.0,0.0048]
[1758499227567,1.57378475,115310.0,115300.0,0.0048]
[1758499229264,1.57402475,115310.0,115300.0,0.0048]
[1758499230266,0.76590475,115310.0,115300.0,0.0048]
[1758499230467,1.57414475,115310.0,115300.0,0.0048]
[1758499231373,1.90414475,115310.0,115300.0,0.0048]
[1758499231573,1.57414475,115310.0,115300.0,0.0048]
[1758499231774,1.91414475,115310.0,115300.0,0.0048]
[1758499232072,1.71414475,115310.0,115300.0,0.0048]
[1758499232660,1.87414475,115310.0,115300.0,0.0048]
[1758499233670,1.71414475,115310.0,115300.0,0.0048]
[1758499234870,0.90590475,115310.0,115300.0,0.0048]
[1758499235067,1.57486475,115310.0,115300.0,0.0048]
[1758499237275,1.57498475,115310.0,115300.0,0.0048]
[1758499237470,1.57494475,115310.0,115300.0,0.0048]
[1758499239271,1.32494475,115310.0,115300.0,0.0048]
[1758499240178,0.51590475,115310.0,115300.0,0.0048]
[1758499240379,1.32506475,115310.0,115300.0,0.0048]
[1758499241880,1.46896475,115310.0,115300.0,0.0048]
[1758499247177,1.46912475,115310.0,115300.0,0.0048]
[1758499247378,1.32530475,115310.0,115300.0,0.091477]
[1758499247578,1.32530475,115310.0,115300.0,0.0048]
[1758499248782,1.32530475,115310.0,115300.0,0.091477]
[1758499249192,1.32530475,115310.0,115300.0,0.0048]
[1758499250292,1.32530475,115310.0,115300.0,0.091477]
[1758499250977,1.32530475,115310.0,115300.0,0.0048]
[1758499255797,0.51590475,115310.0,115300.0,0.0262]
[1758499255993,1.32662475,115310.0,115300.0,0.0048]
[1758499257599,1.32674475,115310.0,115300.0,0.091477]
[1758499258596,1.32682475,115310.0,115300.0,0.091477]
[1758499259801,0.51590475,115310.0,115300.0,0.362877]
[1758499260101,1.32694475,115310.0,115300.0,0.362877]
[1758499265907,1.32694475,115310.0,115300.0,0.3414769]
[1758499266101,1.32694475,115310.0,115300.0,0.0914769]
[1758499266301,1.32694475,115310.0,115300.0,0.1128769]
[1758499266503,1.32694475,115310.0,115300.0,0.0914769]
[1758499268813,1.32694475,115310.0,115300.0,0.1128769]
[1758499269015,1.32730475,115310.0,115300.0,0.1128769]
[1758499269206,1.32794475,115310.0,115300.0,0.1128769]
[1758499269910,0.51590475,115310.0,115300.0,0.1128769]
[1758499270114,1.32790475,115310.0,115300.0,0.1128769]
[1758499272104,1.32742475,115310.0,115300.0,0.1128769]
[1758499278917,1.32742475,115310.0,115300.0,0.0262]
[1758499279218,1.32742475,115310.0,115300.0,0.0914769]
[1758499279419,0.03559,115280.0,115270.0,0.1082895]
[1758499279712,0.39639,115280.0,115270.0,0.1081895]
[1758499279914,0.39639,115280.0,115270.0,0.1213095]
[1758499279915,1.19386,115280.0,115270.0,0.1213095]
[1758499280608,1.20671,115280.0,115270.0,0.1213095]
[1758499280816,1.20771,115280.0,115270.0,0.1243095]
[1758499281511,1.21071,115280.0,115270.0,0.1343095]
[1758499282519,1.21942281,115280.0,115270.0,0.1343095]
[1758499287822,1.21942281,115280.0,115270.0,0.1215895]
[1758499293630,1.21738281,115280.0,115270.0,0.1215895]
[1758499293826,1.21710281,115280.0,115270.0,0.1215895]
[1758499294021,1.21710281,115280.0,115270.0,0.1355795]
[1758499294221,0.40910281,115280.0,115270.0,0.1355795]
[1758499294420,1.21710281,115280.0,115270.0,0.1355795]
[1758499295029,0.40910281,115280.0,115270.0,0.1355795]
[1758499295230,1.21698281,115280.0,115270.0,0.1355795]
[1758499296736,1.21698281,115280.0,115270.0,0.1215895]
[1758499300339,0.40910281,115280.0,115270.0,0.1215895]
[1758499300530,1.21606281,115280.0,115270.0,0.1355795]
[1758499300730,1.21594281,115280.0,115270.0,0.1355795]
[1758499303435,0.39625281,115280.0,115270.0,0.1355795]
[1758499303635,1.20265281,115280.0,115270.0,0.1355795]
[1758499303830,0.03545281,115280.0,115270.0,0.7463795]
[1758499304136,0.84181281,115280.0,115270.0,0.3855795]
[1758499307838,1.20261281,115280.0,115270.0,0.3855795]
[1758499312231,1.20137281,115280.0,115270.0,0.3855795]
[1758499318046,0.38754,115280.0,115270.0,0.3855795]
[1758499318349,0.004,115280.0,115270.0,0.7463795]
[1758499318846,0.02515,115280.0,115270.0,0.7463795]
[1758499320643,0.004,115280.0,115270.0,0.82438577]
[1758499322345,0.02515,115280.0,115270.0,0.82438577]
[1758499322545,0.02515,115280.0,115270.0,0.46358577]
[1758499322745,0.02515,115280.0,115270.0,0.3855795]
[1758499323051,0.02515,115280.0,115270.0,0.7463795]
[1758499323248,0.004,115280.0,115270.0,0.7463795]
[1758499323550,0.004,115280.0,115270.0,0.82438577]
[1758499324649,0.004,115280.0,115270.0,1.62738577]
[1758499326150,0.004,115280.0,115270.0,0.82438577]
[1758499326354,0.004,115280.0,115270.0,1.62722577]
[1758499326764,0.004,115280.0,115270.0,0.82438577]
[1758499326962,0.02515,115280.0,115270.0,1.62714577]
[1758499327563,0.02515,115280.0,115270.0,0.82438577]
[1758499327760,0.02515,115280.0,115270.0,1.26642577]
[1758499328060,0.02515,115280.0,115270.0,1.62778577]
[1758499330267,0.004,115280.0,115270.0,1.62778577]
[1758499331065,0.004,115280.0,115270.0,1.5497795]
[1758499331263,0.004,115280.0,115270.0,1.2997795]
[1758499331457,0.004,115280.0,115270.0,1.62778577]
[1758499335464,0.37825364,115300.0,115290.0,0.1225543]
[1758499335465,0.39983364,115300.0,115290.0,0.1225543]
[1758499336868,0.40183364,115300.0,115290.0,0.1245543]
[1758499337458,0.40283364,115300.0,115290.0,0.1265543]
[1758499337664,0.01188327,115300.0,115290.0,1.2898743]
[1758499337869,0.01188327,115300.0,115290.0,0.56536057]
[1758499338071,0.01188327,115300.0,115290.0,1.36784057]
[1758499338868,0.01188327,115300.0,115290.0,0.56536057]
[1758499339064,0.01188327,115300.0,115290.0,1.36776057]
[1758499339665,0.01188327,115300.0,115290.0,1.36768057]
[1758499340172,0.01188327,115300.0,115290.0,1.43865885]
[1758499340572,0.01188327,115300.0,115290.0,2.93865885]
[1758499340772,0.01188327,115300.0,115290.0,2.94745228]
[1758499341765,0.01188327,115300.0,115290.0,2.94765228]
[1758499342576,0.01188327,115300.0,115290.0,2.14513228]
[1758499342877,0.01188327,115300.0,115290.0,2.94765228]
[1758499343064,0.01188327,115300.0,115290.0,2.14513228]
[1758499343269,0.01188327,115300.0,115290.0,2.94749228]
[1758499343682,0.01188327,115300.0,115290.0,2.14513228]
[1758499343977,0.01188327,115300.0,115290.0,2.94733228]
[1758499344381,0.01188327,115300.0,115290.0,2.14513228]
[1758499344572,0.01188327,115300.0,115290.0,2.94713228]
[1758499348378,0.01188327,115300.0,115290.0,2.86912601]
[1758499348584,0.01188327,115300.0,115290.0,2.94713228]
[1758499349278,0.01188327,115300.0,115290.0,2.86912601]
[1758499349781,0.01188327,115300.0,115290.0,2.06712601]
[1758499349982,0.01188327,115300.0,115290.0,2.86860601]
[1758499351078,0.01188327,115300.0,115290.0,2.05833258]
[1758499351279,0.01188327,115300.0,115290.0,2.85941258]
[1758499351981,0.01188327,115300.0,115290.0,2.86797154]
[1758499352776,0.37366,115330.0,115300.0,0.0866744]
[1758499352977,0.02145,115330.0,115320.0,0.1209319]
[1758499353476,0.40241641,115340.0,115330.0,0.1209243]
[1758499354086,0.41089976,115340.0,115330.0,0.1209243]
[1758499354284,0.05009976,115340.0,115330.0,0.1209243]
[1758499354479,0.04161641,115340.0,115330.0,0.1209243]
[1758499355489,0.02145,115340.0,115330.0,0.1209243]
[1758499355786,0.39567,115350.0,115340.0,0.1209168]
[1758499356182,0.40449922,115350.0,115340.0,0.1209168]
[1758499356788,0.39567,115350.0,115340.0,0.1209168]
[1758499357092,0.013,115350.0,115340.0,0.4847168]
[1758499358786,0.38225,115360.0,115350.0,0.1209093]
[1758499359877,0.39225,115360.0,115350.0,0.1239093]
[1758499360492,0.39525,115360.0,115350.0,0.1249093]
[1758499361099,0.03445,115360.0,115350.0,0.4857093]
[1758499361284,0.013,115360.0,115350.0,0.4857093]
[1758499361989,0.03445,115360.0,115350.0,0.4857093]
[1758499362191,0.03445,115360.0,115350.0,1.2857493]
[1758499363384,0.013,115360.0,115350.0,1.2857493]
[1758499364392,0.03445,115360.0,115350.0,0.4857093]
[1758499364699,0.03445,115360.0,115350.0,1.2853093]
[1758499365092,0.03445,115360.0,115350.0,0.4857093]
[1758499365294,0.03445,115360.0,115350.0,1.2852293]
[1758499365792,0.03445,115360.0,115350.0,1.2851093]
[1758499365992,0.013,115360.0,115350.0,1.2851093]
[1758499366493,0.013,115360.0,115350.0,0.4857093]
[1758499366694,0.013,115360.0,115350.0,1.2850293]
[1758499368695,0.013,115360.0,115350.0,1.2845893]
[1758499368991,0.013,115360.0,115350.0,0.4857093]
[1758499369296,0.03445,115360.0,115350.0,1.2845093]
[1758499369495,0.013,115360.0,115350.0,1.2845093]
[1758499374198,0.013,115360.0,115350.0,0.4857093]
[1758499374597,0.013,115360.0,115350.0,1.2851493]
[1758499375198,0.013,115360.0,115350.0,1.5351493]
[1758499376998,0.013,115360.0,115350.0,0.7357093]
[1758499377292,0.013,115360.0,115350.0,1.5347093]
[1758499377799,0.013,115360.0,115350.0,0.7357093]
[1758499378099,0.0134,115360.0,115350.0,1.5347093]
[1758499382302,1e-07,115360.0,115350.0,1.5347093]
[1758499384001,0.0016,115380.0,115370.0,0.1225946]
[1758499384197,0.0016,115380.0,115370.0,1.2815946]
[1758499384398,0.0229,115390.0,115380.0,0.1225871]
[1758499384608,0.0252,115390.0,115380.0,0.1225871]
[1758499384902,0.0252,115390.0,115380.0,0.9206271]
[1758499386107,0.0362,115390.0,115380.0,0.9226271]
[1758499386408,0.0362,115390.0,115380.0,0.9223471]
[1758499386604,0.0362,115390.0,115380.0,0.1245871]
[1758499386803,0.0362,115390.0,115380.0,0.9225071]
[1758499387109,0.04472646,115390.0,115380.0,0.1245871]
[1758499387408,0.04472646,115390.0,115380.0,0.9225071]
[1758499387607,0.04072646,115390.0,115380.0,0.9215071]
[1758499387806,0.05372646,115390.0,115380.0,0.9235071]
[1758499388409,0.04672646,115390.0,115380.0,0.9225071]
[1758499388604,0.05172646,115390.0,115380.0,0.9235071]
[1758499389606,0.0432,115390.0,115380.0,0.9235071]
[1758499391213,0.0204,115390.0,115380.0,0.9235071]
[1758499391399,0.0204,115390.0,115380.0,1.2843071]
[1758499391797,0.018,115390.0,115380.0,1.2843071]
[1758499392308,1e-07,115390.0,115380.0,1.5343071]
[1758499392509,0.0004001,115390.0,115380.0,1.5343071]
[1758499392807,1e-07,115390.0,115380.0,1.5343071]
[1758499394110,0.0004001,115390.0,115380.0,1.5343071]
[1758499394810,1e-07,115390.0,115380.0,1.61049865]
[1758499395313,0.02455,115420.0,115410.0,0.03724]
[1758499395610,0.02335,115420.0,115410.0,0.9211546]
[1758499395802,0.02335,115420.0,115410.0,0.1238346]
[1758499397205,0.04035,115420.0,115410.0,0.4866346]
[1758499397797,0.03235,115420.0,115410.0,0.4856346]
[1758499398007,0.03835,115420.0,115410.0,0.4866346]
[1758499398408,0.03335,115420.0,115410.0,0.4866346]
[1758499399513,0.28335,115420.0,115410.0,0.4866346]
[1758499399713,0.28335,115420.0,115410.0,1.2832746]
[1758499400117,0.28335,115420.0,115410.0,0.4866346]
[1758499400414,0.28335,115420.0,115410.0,1.2832746]
[1758499400817,0.28335,115420.0,115410.0,0.4866346]
[1758499401114,0.28335,115420.0,115410.0,1.2848346]
[1758499401314,0.28335,115420.0,115410.0,0.4866346]
[1758499401517,0.28335,115420.0,115410.0,1.2848346]
[1758499403313,0.28335,115420.0,115410.0,0.4866346]
[1758499403517,0.28335,115420.0,115410.0,1.2847546]
[1758499404018,0.28335,115420.0,115410.0,0.4866346]
[1758499404221,0.28335,115420.0,115410.0,1.2847546]
[1758499405719,0.0104,115420.0,115410.0,1.5347546]
[1758499405921,0.0001,115430.0,115420.0,0.1221671]
[1758499406122,0.02365,115440.0,115430.0,0.1221596]
[1758499406415,0.02365,115440.0,115430.0,0.9198796]
[1758499406416,0.02355,115440.0,115430.0,0.9198796]
[1758499407828,0.04455,115440.0,115430.0,0.9228796]
[1758499408422,0.04455,115440.0,115430.0,1.2836796]
[1758499409614,0.03755,115440.0,115430.0,1.2826796]
[1758499409814,0.02455,115440.0,115430.0,1.2846796]
[1758499410119,0.0026,115440.0,115430.0,1.2846796]
[1758499411123,0.0026,115440.0,115430.0,0.4869596]
[1758499411327,0.0026,115440.0,115430.0,1.2839596]
[1758499411519,0.0026,115440.0,115430.0,0.4869596]
[1758499411723,0.0026,115440.0,115430.0,1.2839596]
[1758499412313,0.0026,115440.0,115430.0,0.4869596]
[1758499412522,0.0026,115440.0,115430.0,1.2837996]
[1758499412825,0.0026,115440.0,115430.0,1.2837596]
[1758499413125,0.02455,115440.0,115430.0,0.4869596]
[1758499413319,0.02455,115440.0,115430.0,1.2837196]
[1758499414124,0.02455,115440.0,115430.0,0.4869596]
[1758499414325,0.02455,115440.0,115430.0,1.2835196]
[1758499415221,0.02455,115440.0,115430.0,0.1261596]
[1758499415418,0.02455,115440.0,115430.0,0.9227196]
[1758499415621,0.64828,115440.0,115430.0,0.1261596]
[1758499415822,0.64828,115440.0,115430.0,0.0905802]
[1758499416023,0.64828,115440.0,115430.0,0.1130502]
[1758499416225,0.64828,115440.0,115430.0,0.02647]
[1758499416424,0.64828,115440.0,115430.0,0.1130502]
[1758499417128,0.64828,115440.0,115430.0,0.02647]
[1758499417325,0.64828,115440.0,115430.0,0.004]
[1758499417833,0.64828,115440.0,115430.0,0.0905802]
[1758499418125,0.64828,115440.0,115430.0,0.1130502]
[1758499419330,0.39828,115440.0,115430.0,0.1130502]
[1758499421331,0.42014239,115440.0,115430.0,0.1130502]
[1758499422227,1.21586239,115440.0,115430.0,0.1130502]
[1758499425839,1.48641206,115440.0,115430.0,0.0905802]
[1758499426137,0.69079206,115440.0,115430.0,0.0905802]
[1758499426341,1.48595206,115440.0,115430.0,0.1130502]
[1758499426531,1.48607206,115440.0,115430.0,0.1130502]
[1758499427037,0.69079206,115440.0,115430.0,0.1130502]
[1758499427239,1.48619206,115440.0,115430.0,0.1130502]
[1758499427438,0.69079206,115440.0,115430.0,0.1130502]
[1758499427732,1.48611206,115440.0,115430.0,0.1130502]
[1758499429236,1.48591206,115440.0,115430.0,0.1130502]
[1758499430236,0.69079206,115440.0,115430.0,0.1130502]
[1758499430731,1.48575206,115440.0,115430.0,0.1130502]
[1758499431531,0.69079206,115440.0,115430.0,0.1130502]
[1758499431738,1.46372967,115440.0,115430.0,0.1130502]
[1758499432035,0.66892967,115440.0,115430.0,0.1261602]
[1758499432236,1.46364967,115440.0,115430.0,0.1261602]
[1758499432740,1.46364967,115440.0,115430.0,0.1130502]
[1758499435541,1.48552697,115440.0,115430.0,0.1130502]
[1758499439240,1.46364967,115440.0,115430.0,0.1130502]
[1758499440039,0.66892967,115440.0,115430.0,0.1130502]
[1758499440241,1.46272967,115440.0,115430.0,0.1130502]
[1758499441257,1.48460381,115440.0,115430.0,0.1130502]
[1758499443043,0.69080381,115440.0,115430.0,0.1130502]
[1758499443238,1.46252967,115440.0,115430.0,0.1130502]
[1758499443439,0.69081461,115440.0,115430.0,0.1130502]
[1758499443643,1.19951967,115440.0,115430.0,0.1260602]
[1758499444244,1.21216967,115440.0,115430.0,0.1260602]
[1758499444542,1.21056967,115440.0,115430.0,0.1260602]
[1758499444743,1.21096967,115440.0,115430.0,0.1260602]
[1758499445040,1.21096967,115440.0,115430.0,0.1130502]
[1758499454149,1.46096967,115440.0,115430.0,0.004]
[1758499454349,1.48286207,115440.0,115430.0,0.004]
[1758499456458,1.48286207,115440.0,115430.0,0.0905802]
[1758499459660,1.48286207,115440.0,115430.0,0.004]
[1758499461552,0.68934207,115440.0,115430.0,0.004]
[1758499461963,1.48278207,115440.0,115430.0,0.004]
[1758499462257,1.48282207,115440.0,115430.0,0.004]
[1758499465063,0.68934207,115440.0,115430.0,0.004]
[1758499465462,1.48282207,115440.0,115430.0,0.004]
[1758499466161,1.48278207,115440.0,115430.0,0.004]
[1758499467162,1.48278207,115440.0,115430.0,0.0905802]
[1758499467663,1.48278207,115440.0,115430.0,0.004]
[1758499474765,0.03603,115420.0,115410.0,0.0011]
[1758499474959,1.63906869,115420.0,115410.0,0.0875952]
[1758499475159,1.57128738,115420.0,115410.0,0.0875952]
[1758499475765,0.77788738,115420.0,115410.0,0.0875952]
[1758499476065,1.57128738,115420.0,115410.0,0.0875952]
[1758499476469,1.57128738,115420.0,115410.0,0.0885952]
[1758499476658,1.57228738,115420.0,115410.0,0.0945952]
[1758499477169,1.57128738,115420.0,115410.0,0.0875952]
[1758499477470,1.58128738,115420.0,115410.0,0.0895952]
[1758499479468,0.78788738,115420.0,115410.0,0.0895952]
[1758499479659,1.65215784,115420.0,115410.0,0.0895952]
[1758499481571,1.65215784,115420.0,115410.0,0.003]
[1758499483769,1.65215784,115420.0,115410.0,0.0895952]
[1758499485677,0.85875784,115420.0,115410.0,0.0895952]
[1758499485878,1.65215784,115420.0,115410.0,0.0895952]
[1758499488281,1.67425567,115420.0,115410.0,0.0895952]
[1758499491478,1.67425567,115420.0,115410.0,0.003]
[1758499491884,1.92425567,115420.0,115410.0,0.003]
[1758499492890,0.03603,115390.0,115380.0,0.1084022]
[1758499493183,1.19015,115390.0,115380.0,0.1084022]
[1758499494079,1.19015,115390.0,115380.0,0.1094022]
[1758499494485,0.39683,115390.0,115380.0,0.1094022]
[1758499494791,1.19015,115390.0,115380.0,0.1094022]
[1758499496303,1.19115,115390.0,115380.0,0.1144022]
[1758499496588,1.1989591,115390.0,115380.0,0.1094022]
[1758499496786,1.2049591,115390.0,115380.0,0.1094022]
[1758499497392,1.2049991,115390.0,115380.0,0.1094022]
[1758499500794,0.4116391,115390.0,115380.0,0.1094022]
[1758499500993,1.2049991,115390.0,115380.0,0.1094022]
[1758499501395,0.38926,115390.0,115380.0,0.3729922]
[1758499501694,0.0064,115390.0,115380.0,0.7337922]
[1758499501894,0.006,115390.0,115380.0,0.7337922]
[1758499502095,0.02747,115390.0,115380.0,0.7337922]
[1758499503799,0.0064,115390.0,115380.0,0.7337922]
[1758499503985,0.02747,115390.0,115380.0,0.7337922]
[1758499504187,0.0064,115390.0,115380.0,0.7337922]
[1758499504384,0.006,115390.0,115380.0,0.7337922]
[1758499504594,0.0064,115390.0,115380.0,0.7337922]
[1758499504895,0.0001,115400.0,115390.0,0.1224702]
[1758499505192,0.02197,115410.0,115400.0,0.1224627]
[1758499505497,0.02187,115410.0,115400.0,0.1224627]
[1758499505796,0.02107,115410.0,115400.0,0.1224627]
[1758499505995,0.02147,115410.0,115400.0,0.1224627]
[1758499506293,0.03247,115410.0,115400.0,0.1234627]
[1758499507087,0.04122536,115410.0,115400.0,0.1234627]
[1758499507285,0.04786536,115410.0,115400.0,0.1234627]
[1758499508000,0.04786536,115410.0,115400.0,0.1098727]
[1758499508501,0.40866536,115410.0,115400.0,0.1098727]
[1758499516205,0.40866536,115410.0,115400.0,0.0876027]
[1758499516406,0.40866536,115410.0,115400.0,0.1090127]
[1758499520813,1.20170536,115410.0,115400.0,0.1090127]
[1758499521324,0.40866536,115410.0,115400.0,0.1090127]
[1758499521612,1.20170536,115410.0,115400.0,0.1227527]
[1758499521814,0.40866536,115410.0,115400.0,0.1227527]
[1758499522007,1.20170536,115410.0,115400.0,0.1227527]
[1758499522208,0.40866536,115410.0,115400.0,0.1227527]
[1758499522407,1.20170536,115410.0,115400.0,0.1227527]
[1758499523610,0.38727,115410.0,115400.0,0.1227527]
[1758499523812,0.02647,115410.0,115400.0,0.1227527]
[1758499524007,0.02607,115410.0,115400.0,0.1227527]
[1758499524205,0.02647,115410.0,115400.0,0.1227527]
[1758499525216,0.02647,115410.0,115400.0,0.3727527]
[1758499525715,0.02681,115410.0,115400.0,0.3727527]
[1758499525916,0.02641,115410.0,115400.0,0.3727527]
[1758499526106,0.02681,115410.0,115400.0,0.3727527]
[1758499530822,0.0054,115410.0,115400.0,0.3727527]
[1758499531026,0.0054,115410.0,115400.0,0.7335527]
[1758499531520,0.005,115410.0,115400.0,0.7335527]
[1758499531718,0.0054,115410.0,115400.0,0.7335527]
[1758499531915,0.02681,115410.0,115400.0,0.7335527]
[1758499533119,0.02681,115410.0,115400.0,0.3727527]
[1758499533721,0.02681,115410.0,115400.0,0.45075897]
[1758499535226,0.02681,115410.0,115400.0,0.20075897]
[1758499543046,0.02681,115410.0,115400.0,0.1227527]
[1758499543745,0.0054,115410.0,115400.0,0.1227527]
[1758499546747,0.02681,115410.0,115400.0,0.1227527]
[1758499547551,0.02681,115410.0,115400.0,0.20075897]
[1758499548049,0.02681,115410.0,115400.0,0.99347897]
[1758499548947,0.02681,115410.0,115400.0,0.20075897]
[1758499549147,0.02681,115410.0,115400.0,0.99343897]
[1758499549950,0.02681,115410.0,115400.0,0.20075897]
[1758499550153,0.02681,115410.0,115400.0,0.1227527]
[1758499551041,0.38761,115410.0,115400.0,0.1227527]
[1758499552352,0.02681,115410.0,115400.0,0.1227527]
[1758499552653,0.02681,115410.0,115400.0,0.20075897]
[1758499555359,0.0054,115410.0,115400.0,0.20075897]
[1758499556657,0.0054,115410.0,115400.0,0.56155897]
[1758499556857,0.005,115410.0,115400.0,0.56155897]
[1758499557359,0.0054,115410.0,115400.0,0.56155897]
[1758499558357,0.005,115410.0,115400.0,0.56155897]
[1758499558556,0.0054,115410.0,115400.0,0.56155897]
[1758499559060,0.0054,115410.0,115400.0,0.4835527]
[1758499564262,0.0054,115410.0,115400.0,1.2760727]
[1758499566464,0.0054,115410.0,115400.0,1.3538494]
[1758499567767,0.0054,115410.0,115400.0,0.5613294]
[1758499567959,0.0054,115410.0,115400.0,1.3537694]
[1758499569155,0.0054,115410.0,115400.0,1.5259927]
[1758499569356,0.005,115410.0,115400.0,1.5259927]
[1758499569666,0.0054,115410.0,115400.0,1.89910148]
[1758499572171,0.0008,115430.0,115420.0,0.03493]
[1758499572360,0.3608,115440.0,115420.0,2.413918]
[1758499572559,0.3823,115440.0,115430.0,0.1215105]
[1758499573768,0.3913,115440.0,115430.0,0.1215105]
[1758499573954,0.3953,115440.0,115430.0,0.1225105]
[1758499574867,0.40413161,115440.0,115430.0,0.1225105]
[1758499575067,0.41013161,115440.0,115430.0,0.1235105]
[1758499575672,0.42341161,115440.0,115430.0,0.1235105]
[1758499576961,0.42341161,115440.0,115430.0,0.18564924]
[1758499578272,0.42341161,115440.0,115430.0,0.1235105]
[1758499578966,0.42341161,115440.0,115430.0,0.1225105]
[1758499579172,0.41441161,115440.0,115430.0,0.1225105]
[1758499579673,0.41141161,115440.0,115430.0,0.1215105]
[1758499584280,0.41141161,115440.0,115430.0,0.18364924]
[1758499586680,0.41141161,115440.0,115430.0,0.1215105]
[1758499588683,0.39813161,115440.0,115430.0,0.18364924]
[1758499589784,0.39813161,115440.0,115430.0,0.1215105]
[1758499593686,0.41149161,115440.0,115430.0,0.1215105]
[1758499593875,0.41159161,115440.0,115430.0,0.1215105]
[1758499595791,0.39823161,115440.0,115430.0,0.1215105]
[1758499598089,0.41159161,115440.0,115430.0,0.1215105]
[1758499599888,0.41159161,115440.0,115430.0,0.1086505]
[1758499605985,1.20355161,115440.0,115430.0,0.1086505]
[1758499607490,1.20351161,115440.0,115430.0,0.1086505]
[1758499608290,0.41159161,115440.0,115430.0,0.1086505]
[1758499608491,1.20351161,115440.0,115430.0,0.1086505]
[1758499609289,1.20351161,115440.0,115430.0,0.1214105]
[1758499609586,0.39823161,115440.0,115430.0,0.1214105]
[1758499609991,0.39823161,115440.0,115430.0,0.3714105]
[1758499610192,0.39863161,115440.0,115430.0,0.3714105]
[1758499610994,0.39863161,115440.0,115430.0,1.1632905]
[1758499614587,0.3898,115440.0,115430.0,1.1632905]
[1758499615297,0.029,115440.0,115430.0,0.9132905]
[1758499615502,0.0286,115440.0,115430.0,0.99100416]
[1758499615887,0.029,115440.0,115430.0,0.99100416]
[1758499616093,0.029,115440.0,115430.0,0.19912416]
[1758499616301,0.029,115440.0,115430.0,0.99092416]
[1758499617398,0.029,115440.0,115430.0,0.9132105]
[1758499618697,0.029,115440.0,115430.0,0.1214105]
[1758499619000,0.029,115440.0,115430.0,0.9131705]
[1758499623605,0.029,115440.0,115430.0,0.9130905]
[1758499624001,0.029,115440.0,115430.0,0.1214105]
[1758499624202,0.3898,115440.0,115430.0,0.9130505]
[1758499624510,0.3898,115440.0,115430.0,0.1214105]
[1758499624809,0.3898,115440.0,115430.0,0.9130505]
[1758499633214,0.3898,115440.0,115430.0,2.4130505]
[1758499633923,0.3898,115440.0,115430.0,1.6214105]
[1758499634313,0.3898,115440.0,115430.0,2.4129305]
[1758499639217,0.3898,115440.0,115430.0,2.49064416]
[1758499639616,0.3898,115440.0,115430.0,2.4129305]
[1758499639914,0.3898,115440.0,115430.0,2.49064416]
[1758499650122,0.029,115440.0,115430.0,2.49064416]
[1758499655723,0.36975925,115450.0,115430.0,2.57722466]
[1758499655927,0.00895925,115450.0,115440.0,0.121673]
[1758499656133,0.00925925,115450.0,115440.0,0.18390404]
[1758499656630,0.03192925,115450.0,115440.0,0.18390404]
[1758499656833,0.03492925,115450.0,115440.0,0.121673]
[1758499657235,0.04292925,115450.0,115440.0,0.122673]
[1758499657930,0.04292925,115450.0,115440.0,0.917793]
[1758499659029,0.03992925,115450.0,115440.0,0.918793]
[1758499660234,0.03107,115450.0,115440.0,0.92757545]
[1758499660439,0.03107,115450.0,115440.0,0.918793]
[1758499670047,0.008,115450.0,115440.0,0.918793]
[1758499670246,0.0084,115450.0,115440.0,1.279593]
[1758499670438,0.008,115450.0,115440.0,1.279593]
[1758499670639,0.0084,115450.0,115440.0,1.279593]
[1758499672252,0.0084,115450.0,115440.0,0.488473]
[1758499672552,0.0084,115450.0,115440.0,1.35702666]
[1758499674944,0.0084,115450.0,115440.0,1.35698666]
[1758499675246,0.0085,115450.0,115440.0,1.35698666]
[1758499676052,0.0085,115450.0,115440.0,1.35694666]